[Event "Early-Titled-Tuesday-Blitz-January-16-2024"]
[Site "Chess.com"]
[Date "2024.01.16"]
[Round "2"]
[White "stasOR4ik"]
[Black "Ellaijio_B"]
[Result "0-1"]
[WhiteElo "2404"]
[BlackElo "2797"]
[TimeControl "180+1"]
[EndTime "8:20:13 PST"]
[Termination "Ellaijio_B won by resignation"]

1. e4 {[%clk 0:03:00.9]} 1... c5 {[%clk 0:02:57.6]} 2. c3 {[%clk 0:03:01]} 2...
d5 {[%clk 0:02:57.3]} 3. exd5 {[%clk 0:03:01]} 3... Qxd5 {[%clk 0:02:58.2]} 4.
Nf3 {[%clk 0:03:01.7]} 4... Nf6 {[%clk 0:02:58.8]} 5. d4 {[%clk 0:03:02.1]} 5...
Bg4 {[%clk 0:02:59.3]} 6. Be2 {[%clk 0:03:02.3]} 6... e6 {[%clk 0:02:59.6]} 7.
Be3 {[%clk 0:03:02.6]} 7... cxd4 {[%clk 0:02:59.7]} 8. cxd4 {[%clk 0:03:02.6]}
8... Nc6 {[%clk 0:03:00.2]} 9. Nc3 {[%clk 0:03:02.7]} 9... Bb4 {[%clk
0:02:59.9]} 10. O-O {[%clk 0:03:01.7]} 10... Bxc3 {[%clk 0:03:00.3]} 11. bxc3
{[%clk 0:03:02.6]} 11... O-O {[%clk 0:03:00.6]} 12. h3 {[%clk 0:03:02.7]} 12...
Bh5 {[%clk 0:03:01.1]} 13. c4 {[%clk 0:03:02.8]} 13... Qd6 {[%clk 0:03:00.7]}
14. Qd2 {[%clk 0:02:54.3]} 14... Rfd8 {[%clk 0:02:57.3]} 15. Rfd1 {[%clk
0:02:54]} 15... Rac8 {[%clk 0:02:55.4]} 16. Rac1 {[%clk 0:02:53.2]} 16... h6
{[%clk 0:02:52.1]} 17. Qb2 {[%clk 0:02:37.7]} 17... b6 {[%clk 0:02:49.6]} 18. g4
{[%clk 0:02:32]} 18... Bg6 {[%clk 0:02:49.2]} 19. Ne5 {[%clk 0:02:32.4]} 19...
Be4 {[%clk 0:02:45.6]} 20. f3 {[%clk 0:02:27.7]} 20... Bh7 {[%clk 0:02:45.3]}
21. f4 {[%clk 0:02:26.5]} 21... Be4 {[%clk 0:02:43.4]} 22. g5 {[%clk 0:02:23.8]}
22... hxg5 {[%clk 0:02:41.1]} 23. fxg5 {[%clk 0:02:24.7]} 23... Nd7 {[%clk
0:02:41.6]} 24. Bf4 {[%clk 0:02:16.6]} 24... Ndxe5 {[%clk 0:02:36.7]} 25. dxe5
{[%clk 0:02:13.3]} 25... Qc5+ {[%clk 0:02:35.9]} 26. Kf1 {[%clk 0:02:09.2]}
26... g6 {[%clk 0:02:23.8]} 27. Qc3 {[%clk 0:02:06.3]} 27... Rd4 {[%clk
0:01:57.7]} 28. Be3 {[%clk 0:01:59.5]} 28... Rxd1+ {[%clk 0:01:56.9]} 29. Rxd1
{[%clk 0:01:57.3]} 29... Qxe5 {[%clk 0:01:57.4]} 30. Qxe5 {[%clk 0:01:25.4]}
30... Nxe5 {[%clk 0:01:58.3]} 31. Rd4 {[%clk 0:01:21]} 31... Bb7 {[%clk
0:00:47.7]} 32. Bf4 {[%clk 0:01:18]} 32... Nc6 {[%clk 0:00:43]} 33. Rd7 {[%clk
0:01:17.9]} 33... Ba6 {[%clk 0:00:43]} 34. Kf2 {[%clk 0:01:07.3]} 34... Na5
{[%clk 0:00:32.9]} 35. Rxa7 {[%clk 0:00:35.4]} 35... Bxc4 {[%clk 0:00:31.5]} 36.
Bg4 {[%clk 0:00:35.7]} 36... Nc6 {[%clk 0:00:19.7]} 37. Rc7 {[%clk 0:00:27.5]}
37... Rxc7 {[%clk 0:00:19.6]} 38. Bxc7 {[%clk 0:00:28.4]} 38... b5 {[%clk
0:00:18.7]} 39. a3 {[%clk 0:00:28.7]} 39... Kf8 {[%clk 0:00:16.3]} 40. Bd6+
{[%clk 0:00:20]} 40... Ke8 {[%clk 0:00:16.7]} 41. Bf3 {[%clk 0:00:19.1]} 41...
Nd4 {[%clk 0:00:15.1]} 42. Bb7 {[%clk 0:00:16.8]} 42... Kd7 {[%clk 0:00:13.5]}
43. Bc5 {[%clk 0:00:16.8]} 43... Nf5 {[%clk 0:00:11.5]} 44. Kf3 {[%clk
0:00:15.5]} 44... Bd5+ {[%clk 0:00:10.6]} 45. Bxd5 {[%clk 0:00:15.4]} 45... exd5
{[%clk 0:00:11.5]} 46. Kf4 {[%clk 0:00:15.1]} 46... Ke6 {[%clk 0:00:12.1]} 47.
Bb6 {[%clk 0:00:13.5]} 47... Nd6 {[%clk 0:00:12.2]} 48. Bc5 {[%clk 0:00:13.7]}
48... Nc4 {[%clk 0:00:12.5]} 49. h4 {[%clk 0:00:13.5]} 49... Ne5 {[%clk
0:00:12]} 50. Bd4 {[%clk 0:00:12.4]} 50... Nc6 {[%clk 0:00:11.9]} 51. Bc5 {[%clk
0:00:12.6]} 51... Na5 {[%clk 0:00:11.2]} 52. Kg4 {[%clk 0:00:11.9]} 52... Nb3
{[%clk 0:00:09.6]} 53. Bb4 {[%clk 0:00:10.9]} 53... Nc1 {[%clk 0:00:07.5]} 54.
Bd2 {[%clk 0:00:08.2]} 54... Nd3 {[%clk 0:00:07]} 55. h5 {[%clk 0:00:07.8]}
55... gxh5+ {[%clk 0:00:06.8]} 56. Kxh5 {[%clk 0:00:08.7]} 56... Ne5 {[%clk
0:00:07.5]} 57. Kh6 {[%clk 0:00:07.6]} 57... d4 {[%clk 0:00:04.5]} 58. Kh5
{[%clk 0:00:07.9]} 58... d3 {[%clk 0:00:04.3]} 59. Bb4 {[%clk 0:00:04.3]} 59...
Nc4 {[%clk 0:00:04.1]} 60. g6 {[%clk 0:00:04.6]} 60... fxg6+ {[%clk 0:00:03.9]}
61. Kxg6 {[%clk 0:00:04.7]} 61... d2 {[%clk 0:00:03.2]} 62. Bxd2 {[%clk
0:00:05.4]} 62... Nxd2 {[%clk 0:00:03.8]} 63. Kg5 {[%clk 0:00:06.3]} 63... Kd5
{[%clk 0:00:03.6]} 64. Kf4 {[%clk 0:00:07.2]} 64... Nc4 {[%clk 0:00:02.9]} 65.
Kf3 {[%clk 0:00:07.3]} 65... Nxa3 {[%clk 0:00:03]} 66. Ke2 {[%clk 0:00:07.8]}
66... Kc4 {[%clk 0:00:03.9]} 67. Kd2 {[%clk 0:00:08.4]} 67... Kb3 {[%clk
0:00:04.8]} 68. Kc1 {[%clk 0:00:09.1]} 68... Ka2 {[%clk 0:00:05.4]} 69. Kd2
{[%clk 0:00:09]} 69... b4 {[%clk 0:00:06.3]} 70. Kc1 {[%clk 0:00:09.5]} 70... b3
{[%clk 0:00:07.2]} 71. Kd2 {[%clk 0:00:10.3]} 71... b2 {[%clk 0:00:08.1]} 72.
Kd3 {[%clk 0:00:10.9]} 72... b1=Q+ {[%clk 0:00:09]} 73. Kc3 {[%clk 0:00:11.7]}
73... Qb5 {[%clk 0:00:09.9]} 74. Kd2 {[%clk 0:00:11.4]} 74... Qc4 {[%clk
0:00:09.8]} 75. Kd1 {[%clk 0:00:11.7]} 75... Qc2+ {[%clk 0:00:10.1]} 76. Ke1
{[%clk 0:00:12.6]} 0-1

[Event "Early-Titled-Tuesday-Blitz-January-16-2024"]
[Site "Chess.com"]
[Date "2024.01.16"]
[Round "2"]
[White "Mikayel99"]
[Black "PLAYER_2006_M"]
[Result "0-1"]
[WhiteElo "2579"]
[BlackElo "2869"]
[TimeControl "180+1"]
[EndTime "8:20:14 PST"]
[Termination "PLAYER_2006_M won by resignation"]

1. e4 {[%clk 0:03:00.9]} 1... e5 {[%clk 0:03:00]} 2. Nf3 {[%clk 0:03:00.4]} 2...
Nf6 {[%clk 0:03:00.2]} 3. Nxe5 {[%clk 0:02:57.7]} 3... d6 {[%clk 0:03:00.1]} 4.
Nf3 {[%clk 0:02:58]} 4... Nxe4 {[%clk 0:03:00.3]} 5. d3 {[%clk 0:02:58.4]} 5...
Nf6 {[%clk 0:02:59.6]} 6. d4 {[%clk 0:02:58.8]} 6... g6 {[%clk 0:03:00.2]} 7.
Bd3 {[%clk 0:02:58.8]} 7... Bg7 {[%clk 0:03:00.5]} 8. O-O {[%clk 0:02:58.7]}
8... O-O {[%clk 0:02:59.9]} 9. h3 {[%clk 0:02:59.2]} 9... c5 {[%clk 0:02:55.9]}
10. c3 {[%clk 0:02:56]} 10... Nc6 {[%clk 0:02:55.5]} 11. dxc5 {[%clk 0:02:51.5]}
11... dxc5 {[%clk 0:02:55.5]} 12. Be3 {[%clk 0:02:52.2]} 12... b6 {[%clk
0:02:51.3]} 13. Qc2 {[%clk 0:02:41.8]} 13... h6 {[%clk 0:02:39.7]} 14. Rd1
{[%clk 0:02:40.3]} 14... Qc7 {[%clk 0:02:38.1]} 15. Na3 {[%clk 0:02:34.1]} 15...
Bb7 {[%clk 0:02:31.7]} 16. Nb5 {[%clk 0:02:29.6]} 16... Qb8 {[%clk 0:02:22.1]}
17. Be2 {[%clk 0:02:24.6]} 17... Ne5 {[%clk 0:02:08.3]} 18. Nxe5 {[%clk
0:02:20.1]} 18... Qxe5 {[%clk 0:02:09.2]} 19. Nd6 {[%clk 0:02:20.4]} 19... Bd5
{[%clk 0:02:03.6]} 20. Nc4 {[%clk 0:02:04.5]} 20... Qe6 {[%clk 0:02:03.3]} 21.
Nd2 {[%clk 0:01:57.6]} 21... Rad8 {[%clk 0:02:01.2]} 22. Bf3 {[%clk 0:01:57.5]}
22... Rfe8 {[%clk 0:02:01.6]} 23. Re1 {[%clk 0:01:48.5]} 23... Kh7 {[%clk
0:01:54.7]} 24. Rad1 {[%clk 0:01:43.8]} 24... Bxf3 {[%clk 0:01:45.3]} 25. Nxf3
{[%clk 0:01:42.3]} 25... Rxd1 {[%clk 0:01:45.9]} 26. Rxd1 {[%clk 0:01:37.8]}
26... Qxa2 {[%clk 0:01:46.2]} 27. Bf4 {[%clk 0:01:30.5]} 27... Nd5 {[%clk
0:01:37]} 28. Bg3 {[%clk 0:01:26.6]} 28... Nxc3 {[%clk 0:01:33.6]} 29. Rd7
{[%clk 0:01:24.1]} 29... Ne2+ {[%clk 0:01:02.5]} 30. Kh2 {[%clk 0:01:24.3]}
30... Nxg3 {[%clk 0:00:59.7]} 31. fxg3 {[%clk 0:01:24.4]} 31... a5 {[%clk
0:01:00.4]} 32. Rb7 {[%clk 0:01:18]} 32... Qe6 {[%clk 0:00:53.8]} 33. Qa4 {[%clk
0:00:57.8]} 33... Re7 {[%clk 0:00:53.2]} 34. Rb8 {[%clk 0:00:50]} 34... Qd6
{[%clk 0:00:52.1]} 35. Rc8 {[%clk 0:00:41.1]} 35... Qd7 {[%clk 0:00:45.4]} 36.
Qxd7 {[%clk 0:00:39.5]} 36... Rxd7 {[%clk 0:00:46.3]} 37. Rb8 {[%clk 0:00:39.7]}
37... Rd6 {[%clk 0:00:44.3]} 38. b3 {[%clk 0:00:39.9]} 38... Bc3 {[%clk
0:00:41.1]} 39. g4 {[%clk 0:00:37.8]} 39... Kg7 {[%clk 0:00:38.3]} 40. Kg3
{[%clk 0:00:37.7]} 40... Rc6 {[%clk 0:00:24.5]} 41. Kf2 {[%clk 0:00:35]} 41...
Re6 {[%clk 0:00:24.4]} 42. h4 {[%clk 0:00:31.2]} 42... Kf6 {[%clk 0:00:23.8]}
43. Rb7 {[%clk 0:00:30]} 43... g5 {[%clk 0:00:22.5]} 44. h5 {[%clk 0:00:26.4]}
44... Bd4+ {[%clk 0:00:22]} 45. Kg3 {[%clk 0:00:24.7]} 45... Bc3 {[%clk
0:00:19.3]} 46. Kf2 {[%clk 0:00:24.5]} 46... Rd6 {[%clk 0:00:19.8]} 47. Ke3
{[%clk 0:00:23.5]} 47... Ke6 {[%clk 0:00:20.4]} 48. Ke4 {[%clk 0:00:21.8]} 48...
Rc6 {[%clk 0:00:18.1]} 49. Kd3 {[%clk 0:00:19]} 49... Bb4 {[%clk 0:00:13.2]} 50.
Kc4 {[%clk 0:00:18.5]} 50... Rd6 {[%clk 0:00:11.1]} 51. Kb5 {[%clk 0:00:18.7]}
51... f5 {[%clk 0:00:08.2]} 52. Rxb6 {[%clk 0:00:13.6]} 52... Rxb6+ {[%clk
0:00:06.6]} 53. Kxb6 {[%clk 0:00:14.5]} 53... fxg4 {[%clk 0:00:07.2]} 54. Nh2
{[%clk 0:00:14.3]} 54... Kf5 {[%clk 0:00:07.6]} 55. Nf1 {[%clk 0:00:14.8]} 55...
Kf4 {[%clk 0:00:05.5]} 56. Kb5 {[%clk 0:00:13.9]} 56... g3 {[%clk 0:00:04.8]}
57. Kc4 {[%clk 0:00:14.3]} 57... Kg4 {[%clk 0:00:05]} 58. Kd3 {[%clk 0:00:14.3]}
58... Be1 {[%clk 0:00:04]} 59. Ke2 {[%clk 0:00:12.9]} 59... Bf2 {[%clk 0:00:04]}
60. Nd2 {[%clk 0:00:12.3]} 60... Kxh5 {[%clk 0:00:04.7]} 61. Nc4 {[%clk
0:00:12.7]} 61... Bd4 {[%clk 0:00:04.9]} 62. Nxa5 {[%clk 0:00:12.9]} 62... Kg4
{[%clk 0:00:05.5]} 63. Nc6 {[%clk 0:00:13.5]} 63... h5 {[%clk 0:00:06]} 64. b4
{[%clk 0:00:09.8]} 64... h4 {[%clk 0:00:02.9]} 65. b5 {[%clk 0:00:05.6]} 65...
h3 {[%clk 0:00:03.6]} 66. gxh3+ {[%clk 0:00:03.1]} 66... Kxh3 {[%clk 0:00:04.2]}
67. Nxd4 {[%clk 0:00:04]} 67... cxd4 {[%clk 0:00:04.3]} 68. b6 {[%clk
0:00:04.8]} 68... g2 {[%clk 0:00:04.9]} 69. b7 {[%clk 0:00:05.3]} 69... g1=Q
{[%clk 0:00:05.5]} 70. b8=Q {[%clk 0:00:05.4]} 70... Qh2+ {[%clk 0:00:06.2]} 0-1

[Event "Early-Titled-Tuesday-Blitz-January-16-2024"]
[Site "Chess.com"]
[Date "2024.01.16"]
[Round "2"]
[White "sofaceindisguise"]
[Black "falzehope0"]
[Result "1/2-1/2"]
[WhiteElo "2661"]
[BlackElo "2388"]
[TimeControl "180+1"]
[EndTime "8:20:23 PST"]
[Termination "Game drawn by repetition"]

1. e4 {[%clk 0:03:00.9]} 1... d5 {[%clk 0:02:58.3]} 2. exd5 {[%clk 0:03:00.9]}
2... Nf6 {[%clk 0:02:58.2]} 3. Nc3 {[%clk 0:03:01.5]} 3... Nxd5 {[%clk 0:02:58]}
4. Nge2 {[%clk 0:02:58.1]} 4... g6 {[%clk 0:02:52]} 5. g3 {[%clk 0:02:58.4]}
5... Bg7 {[%clk 0:02:51.8]} 6. Bg2 {[%clk 0:02:59]} 6... c6 {[%clk 0:02:49.4]}
7. O-O {[%clk 0:02:59]} 7... O-O {[%clk 0:02:49.2]} 8. Re1 {[%clk 0:02:57.4]}
8... Na6 {[%clk 0:02:48.3]} 9. Nxd5 {[%clk 0:02:56.6]} 9... cxd5 {[%clk
0:02:48.2]} 10. d4 {[%clk 0:02:57.3]} 10... Bf5 {[%clk 0:02:45.2]} 11. c3 {[%clk
0:02:57.5]} 11... Rc8 {[%clk 0:02:39.6]} 12. Nf4 {[%clk 0:02:57.3]} 12... Nc7
{[%clk 0:02:36.8]} 13. h4 {[%clk 0:02:57]} 13... Qd7 {[%clk 0:02:36.2]} 14. h5
{[%clk 0:02:56.7]} 14... Be6 {[%clk 0:02:32.3]} 15. hxg6 {[%clk 0:02:52.4]}
15... hxg6 {[%clk 0:02:31.2]} 16. Bf3 {[%clk 0:02:46.9]} 16... Bf5 {[%clk
0:02:24]} 17. Kg2 {[%clk 0:02:46.8]} 17... b5 {[%clk 0:02:12.4]} 18. Rh1 {[%clk
0:02:41.8]} 18... e5 {[%clk 0:02:05.2]} 19. dxe5 {[%clk 0:02:41.4]} 19... Bxe5
{[%clk 0:02:04.8]} 20. Be3 {[%clk 0:02:40.8]} 20... Rfd8 {[%clk 0:01:59.4]} 21.
Bd4 {[%clk 0:02:40.9]} 21... Qd6 {[%clk 0:01:45.6]} 22. Qg1 {[%clk 0:02:33.2]}
22... Bxd4 {[%clk 0:01:39.6]} 23. cxd4 {[%clk 0:02:33.4]} 23... Qf6 {[%clk
0:01:38.3]} 24. Qh2 {[%clk 0:02:33.7]} 24... Qg7 {[%clk 0:01:38.5]} 25. Rae1
{[%clk 0:02:31.4]} 25... b4 {[%clk 0:01:34.1]} 26. Re5 {[%clk 0:02:31.6]} 26...
Ne6 {[%clk 0:01:29.6]} 27. Nxd5 {[%clk 0:02:16.5]} 27... Rxd5 {[%clk 0:01:13.5]}
28. Bxd5 {[%clk 0:02:08.4]} 28... Nxd4 {[%clk 0:01:12.9]} 29. Re7 {[%clk
0:02:07.6]} 29... Be6 {[%clk 0:01:08.3]} 30. Bxe6 {[%clk 0:02:01.5]} 30... Nxe6
{[%clk 0:01:08.1]} 31. Rd1 {[%clk 0:02:00]} 31... Nf8 {[%clk 0:01:01.6]} 32.
Rdd7 {[%clk 0:01:58.7]} 32... Nxd7 {[%clk 0:01:00.8]} 33. Rxd7 {[%clk
0:01:59.6]} 33... Qe5 {[%clk 0:00:56.7]} 34. Qh4 {[%clk 0:01:56.2]} 34... Qxb2
{[%clk 0:00:49.1]} 35. Qf4 {[%clk 0:01:53.6]} 35... Rf8 {[%clk 0:00:46.9]} 36.
Rxa7 {[%clk 0:01:52.4]} 36... Qc3 {[%clk 0:00:43.5]} 37. Rc7 {[%clk 0:01:50.6]}
37... Qb2 {[%clk 0:00:36.6]} 38. Qc4 {[%clk 0:01:50.5]} 38... Qa3 {[%clk
0:00:29.4]} 39. Rb7 {[%clk 0:01:46.3]} 39... Qa8 {[%clk 0:00:27.3]} 40. Qd5
{[%clk 0:01:41.8]} 40... Kg7 {[%clk 0:00:22.2]} 41. Kg1 {[%clk 0:01:40.7]} 41...
Kg8 {[%clk 0:00:22]} 42. Kf1 {[%clk 0:01:37.7]} 42... Qa6+ {[%clk 0:00:20.4]}
43. Kg1 {[%clk 0:01:36.5]} 43... Qa8 {[%clk 0:00:19.8]} 44. Kh2 {[%clk
0:01:29.7]} 44... Kg7 {[%clk 0:00:19.3]} 45. Qd4+ {[%clk 0:01:30.2]} 45... Kg8
{[%clk 0:00:19.4]} 46. Rxb4 {[%clk 0:01:25.8]} 46... Qxa2 {[%clk 0:00:18.8]} 47.
Qf6 {[%clk 0:01:23.1]} 47... Qe6 {[%clk 0:00:15.3]} 48. Qb2 {[%clk 0:01:19]}
48... f6 {[%clk 0:00:14.6]} 49. Rb6 {[%clk 0:01:17.3]} 49... Qe5 {[%clk
0:00:13.8]} 50. Qc2 {[%clk 0:01:15.6]} 50... Qh5+ {[%clk 0:00:13.2]} 51. Kg1
{[%clk 0:01:16.3]} 51... Rd8 {[%clk 0:00:12.3]} 52. Qc4+ {[%clk 0:01:13.4]}
52... Kh8 {[%clk 0:00:11.7]} 53. Kg2 {[%clk 0:01:07.1]} 53... Qd5+ {[%clk
0:00:10.7]} 54. Qxd5 {[%clk 0:01:07.6]} 54... Rxd5 {[%clk 0:00:11.3]} 55. Rxf6
{[%clk 0:01:08.5]} 55... Kg7 {[%clk 0:00:11.7]} 56. Rb6 {[%clk 0:01:09.1]} 56...
Rd7 {[%clk 0:00:11.8]} 57. f4 {[%clk 0:01:09.4]} 57... Rf7 {[%clk 0:00:12.3]}
58. Kf3 {[%clk 0:01:09.7]} 58... Re7 {[%clk 0:00:12.9]} 59. Kg4 {[%clk
0:01:09.9]} 59... Ra7 {[%clk 0:00:13.4]} 60. Rb5 {[%clk 0:01:09.5]} 60... Rc7
{[%clk 0:00:13.2]} 61. Kg5 {[%clk 0:01:09.7]} 61... Ra7 {[%clk 0:00:13.2]} 62.
g4 {[%clk 0:01:10.2]} 62... Rc7 {[%clk 0:00:11.9]} 63. Rb6 {[%clk 0:01:10.6]}
63... Rc5+ {[%clk 0:00:11.3]} 64. Kh4 {[%clk 0:01:11.5]} 64... Rc7 {[%clk
0:00:10.5]} 65. Kg3 {[%clk 0:01:09.9]} 65... Rc3+ {[%clk 0:00:10.7]} 66. Kf2
{[%clk 0:01:10.2]} 66... Rc2+ {[%clk 0:00:11.2]} 67. Ke3 {[%clk 0:01:10.7]}
67... Rc3+ {[%clk 0:00:11.6]} 68. Kd4 {[%clk 0:01:11.1]} 68... Rg3 {[%clk
0:00:11.6]} 69. g5 {[%clk 0:01:10.8]} 69... Rf3 {[%clk 0:00:11.7]} 70. Ke4
{[%clk 0:01:11.2]} 70... Rf1 {[%clk 0:00:11.9]} 71. Rb7+ {[%clk 0:01:11.7]}
71... Kg8 {[%clk 0:00:12.5]} 72. Ke5 {[%clk 0:01:12.2]} 72... Rf2 {[%clk
0:00:11.1]} 73. Rc7 {[%clk 0:01:11.6]} 73... Rf1 {[%clk 0:00:10.3]} 74. Kf6
{[%clk 0:01:09.4]} 74... Rxf4+ {[%clk 0:00:10.4]} 75. Kxg6 {[%clk 0:01:10]}
75... Rf8 {[%clk 0:00:10.8]} 76. Rg7+ {[%clk 0:00:56.3]} 76... Kh8 {[%clk
0:00:11.1]} 77. Rf7 {[%clk 0:00:55.7]} 77... Ra8 {[%clk 0:00:10.9]} 78. Re7
{[%clk 0:00:54.2]} 78... Kg8 {[%clk 0:00:11.3]} 79. Re6 {[%clk 0:00:54.1]} 79...
Rb8 {[%clk 0:00:11.4]} 80. Rd6 {[%clk 0:00:53.4]} 80... Ra8 {[%clk 0:00:11.9]}
81. Rd7 {[%clk 0:00:53.4]} 81... Ra6+ {[%clk 0:00:11.5]} 82. Kf5 {[%clk
0:00:53.8]} 82... Rb6 {[%clk 0:00:11.8]} 83. Re7 {[%clk 0:00:53.2]} 83... Ra6
{[%clk 0:00:12]} 84. g6 {[%clk 0:00:53.7]} 84... Ra5+ {[%clk 0:00:11.3]} 85. Kf6
{[%clk 0:00:54.5]} 85... Ra6+ {[%clk 0:00:11.7]} 86. Kg5 {[%clk 0:00:55.1]}
86... Ra5+ {[%clk 0:00:11.5]} 87. Kh6 {[%clk 0:00:55.5]} 87... Ra8 {[%clk
0:00:11.5]} 88. Rg7+ {[%clk 0:00:55.6]} 88... Kh8 {[%clk 0:00:11.7]} 89. Rh7+
{[%clk 0:00:56.2]} 89... Kg8 {[%clk 0:00:12.3]} 90. Rg7+ {[%clk 0:00:55.8]}
90... Kh8 {[%clk 0:00:12.7]} 91. Rd7 {[%clk 0:00:56.3]} 91... Kg8 {[%clk
0:00:12.3]} 92. Rd6 {[%clk 0:00:56.9]} 92... Rb8 {[%clk 0:00:11.2]} 93. Kg5
{[%clk 0:00:55.4]} 93... Rb1 {[%clk 0:00:09.3]} 94. Rd8+ {[%clk 0:00:55.5]}
94... Kg7 {[%clk 0:00:08.7]} 95. Rd7+ {[%clk 0:00:56.4]} 95... Kg8 {[%clk
0:00:08.6]} 96. Kf6 {[%clk 0:00:56.5]} 96... Rf1+ {[%clk 0:00:08]} 97. Kg5
{[%clk 0:00:56.9]} 97... Rg1+ {[%clk 0:00:08.4]} 98. Kh6 {[%clk 0:00:57.5]}
98... Rh1+ {[%clk 0:00:08.9]} 99. Kg5 {[%clk 0:00:57.4]} 99... Rg1+ {[%clk
0:00:09.4]} 100. Kf6 {[%clk 0:00:58.2]} 100... Re1 {[%clk 0:00:09.9]} 101. Rg7+
{[%clk 0:00:57.7]} 101... Kf8 {[%clk 0:00:09.8]} 102. Rh7 {[%clk 0:00:57.6]}
102... Rf1+ {[%clk 0:00:09.1]} 103. Ke6 {[%clk 0:00:58.1]} 103... Re1+ {[%clk
0:00:09.1]} 104. Kf5 {[%clk 0:00:58.5]} 104... Rf1+ {[%clk 0:00:09.5]} 105. Ke6
{[%clk 0:00:59.1]} 105... Re1+ {[%clk 0:00:09.7]} 106. Kf5 {[%clk 0:01:00]}
106... Rf1+ {[%clk 0:00:09.9]} 107. Ke6 {[%clk 0:01:00.9]} 1/2-1/2